[Event "12th Senioren-Cup Tegernsee 2024"]
[Site "Rottach-Egern"]
[Date "2024.04.06"]
[Round "1.1"]
[White "Schneider-Zinner, Harald"]
[Black "Welsch, Roland"]
[Result "1-0"]
[ECO "D11"]
[WhiteElo "2335"]
[BlackElo "1906"]
[Annotator "RC"]
[PlyCount "49"]
[EventDate "2024.04.02"]
[EventType "swiss"]
[EventCountry "GER"]
[SourceTitle "playchess.com"]
[Source "ChessBase"]
[SourceQuality "1"]
[TimeControl "7800+30"]

1. Nf3 {[%emt 0:00:11]} d5 {[%emt 0:00:22]} 2. d4 {[%emt 2:11:19]} Nf6 3. c4 c6 4. Nbd2 Bf5 5. Nh4 Bg6 6. Qb3 Qb6 7. Qh3 Na6 8. Nxg6 hxg6 9. Qxh8 Qxd4 10. Qh3 e6 11. Qc3 Qg4 12. h3 {[%emt 0:00:00]} Qh5 {[%emt 0:05:39]} 13. a3 {[%emt 0:00:00]} O-O-O {[%emt 0:31:15]} 14. e3 {[%emt 0:00:00]} e5 {[%emt 0:06:15]} 15. cxd5 {[%emt 0:00:00]} Nxd5 {[%emt 0:01:11]} 16. Qc4 {[%emt 0:00:00]} f5 {[%emt 0:06:02]} 17. b4 {[%emt 0:00:00]} Nac7 {[%emt 0:06:36]} 18. Bb2 {[%emt 0:00:00]} e4 {[%emt 0:05:30]} 19. g3 {[%emt 0:00:00]} Bd6 {[%emt 0:03:55]} 20. Be2 {[%emt 0:00:00]} Qh6 {[%emt 0:06:35]} 21. Nf1 {[%emt 0:00:00]} g5 {[%emt 0:07:17]} 22. O-O-O {[%emt 0:00:00]} Kb8 {[%emt 0:03:05]} 23. Nd2 {[%emt 0:00:00]} Qg6 {[%emt 0:15:02]} 24. h4 {[%emt 0:11:00]} Nb6 25. Qc2 {[%emt 0:00:00]} 1-0

[Event "12th Senioren-Cup Tegernsee 2024"]
[Site "Rottach-Egern"]
[Date "2024.04.06"]
[Round "1.3"]
[White "Cordts, Ingo"]
[Black "Hansch, Klaus-Michael"]
[Result "1-0"]
[ECO "A57"]
[WhiteElo "2225"]
[BlackElo "1903"]
[Annotator "RC"]
[PlyCount "47"]
[EventDate "2024.04.02"]
[EventType "swiss"]
[EventCountry "GER"]
[SourceTitle "playchess.com"]
[Source "ChessBase"]
[SourceQuality "1"]
[TimeControl "7800+30"]

1. d4 {[%emt 0:00:06]} Nf6 {[%emt 0:00:25]} 2. c4 {[%emt 0:00:07]} c5 {[%emt 0:00:20]} 3. d5 {[%emt 0:00:33]} b5 {[%emt 0:00:25]} 4. Qc2 {[%emt 0:00:31]} bxc4 {[%emt 0:01:34]} 5. e4 {[%emt 0:00:14]} d6 {[%emt 0:00:26]} 6. Bxc4 {[%emt 0:00:25]} Nbd7 {[%emt 0:00:46]} 7. Nc3 {[%emt 0:03:33]} g6 {[%emt 0:00:33]} 8. f4 {[%emt 0:01:43]} Bg7 {[%emt 0:03:10]} 9. Nf3 {[%emt 0:00:57]} O-O {[%emt 0:00:26]} 10. a4 {[%emt 0:03:11]} Qa5 {[%emt 0:07:49]} 11. Bd2 {[%emt 0:06:19]} a6 {[%emt 0:03:56]} 12. O-O {[%emt 0:03:45]} Ne8 {[%emt 0:01:32]} 13. Rfe1 {[%emt 0:03:36]} Rb8 {[%emt 0:02:10]} 14. Ra2 {[%emt 0:09:20]} Qb4 {[%emt 0:06:39]} 15. Nb5 {[%emt 0:02:16]} axb5 {[%emt 0:03:32]} 16. Bxb4 {[%emt 0:00:24]} bxc4 {[%emt 0:00:28]} 17. Bc3 {[%emt 0:00:22]} Nef6 {[%emt 0:01:36]} 18. Nd2 {[%emt 0:02:01]} Ba6 {[%emt 0:01:11]} 19. a5 {[%emt 0:04:06]} Rb7 {[%emt 0:02:15]} 20. h3 {[%emt 0:03:41]} Rfb8 {[%emt 0:00:40]} 21. g4 {[%emt 0:00:52]} Rb3 {[%emt 0:00:54]} 22. Ra4 {[%emt 0:04:57]} Ne8 {[%emt 0:01:42]} 23. Nxb3 {[%emt 0:01:48]} Rxb3 {[%emt 0:00:32]} 24. Bxg7 {[%emt 0:01:06]} 1-0

[Event "12th Senioren-Cup Tegernsee 2024"]
[Site "Rottach-Egern"]
[Date "2024.04.06"]
[Round "1.4"]
[White "Schicker, Rudolf"]
[Black "Vatter, Hans-Joachim"]
[Result "0-1"]
[ECO "A21"]
[WhiteElo "1903"]
[BlackElo "2211"]
[Annotator "RC"]
[PlyCount "56"]
[EventDate "2024.04.02"]
[EventType "swiss"]
[EventCountry "GER"]
[SourceTitle "playchess.com"]
[Source "ChessBase"]
[SourceQuality "1"]
[TimeControl "7800+30"]

1. Nf3 {[%emt 0:00:02]} d6 {[%emt 0:00:27]} 2. c4 {[%emt 0:00:10]} e5 {[%emt 0:00:26]} 3. d3 {[%emt 0:00:10]} f5 {[%emt 0:00:22]} 4. Nc3 {[%emt 0:00:18]} Nf6 {[%emt 0:00:03]} 5. Bg5 {[%emt 0:01:11]} Be7 {[%emt 0:00:08]} 6. g3 {[%emt 0:04:42]} Nbd7 {[%emt 0:03:31]} 7. Bg2 {[%emt 0:00:20]} h6 {[%emt 0:01:12]} 8. Bxf6 {[%emt 0:03:38]} Bxf6 {[%emt 0:02:47]} 9. Qc2 {[%emt 0:02:07]} c6 {[%emt 0:00:25]} 10. O-O {[%emt 0:02:23]} g5 {[%emt 0:01:43]} 11. Rab1 {[%emt 0:00:52]} h5 {[%emt 0:06:48]} 12. b4 {[%emt 0:05:10]} h4 {[%emt 0:00:09]} 13. Rfd1 {[%emt 0:02:27]} hxg3 {[%emt 0:02:29]} 14. hxg3 {[%emt 0:03:09]} Kf7 {[%emt 0:08:54]} 15. c5 {[%emt 0:23:30]} d5 {[%emt 0:03:21]} 16. b5 {[%emt 0:04:52]} Qe7 {[%emt 0:10:51]} 17. bxc6 {[%emt 0:02:17]} bxc6 {[%emt 0:00:10]} 18. Nxd5 {[%emt 0:09:46]} cxd5 {[%emt 0:00:20]} 19. Nxg5+ {[%emt 0:00:09]} Bxg5 {[%emt 0:08:32]} 20. Bxd5+ {[%emt 0:01:32]} Kg6 {[%emt 0:00:06]} 21. Bxa8 {[%emt 0:00:11]} Nxc5 {[%emt 0:00:07]} 22. Bg2 {[%emt 0:01:22]} Ne6 {[%emt 0:11:56]} 23. e3 {[%emt 0:01:23]} Bf6 {[%emt 0:04:57]} 24. Qc4 {[%emt 0:04:35]} Ng5 {[%emt 0:01:31]} 25. d4 {[%emt 0:01:23]} e4 {[%emt 0:00:46]} 26. Rb8 {[%emt 0:03:38]} Ba6 {[%emt 0:06:58]} 27. Qb4 {[%emt 0:03:09]} Qxb4 {[%emt 0:15:19]} 28. Rxb4 {[%emt 0:00:03]} Be2 {[%emt 0:00:07]} 0-1

[Event "12th Senioren-Cup Tegernsee 2024"]
[Site "Rottach-Egern"]
[Date "2024.04.06"]
[Round "1.7"]
[White "Belke, Frank"]
[Black "Spanton, Tim R"]
[Result "1-0"]
[ECO "D50"]
[WhiteElo "2163"]
[BlackElo "1886"]
[Annotator "RC"]
[PlyCount "115"]
[EventDate "2024.04.02"]
[EventType "swiss"]
[EventCountry "GER"]
[SourceTitle "playchess.com"]
[Source "ChessBase"]
[SourceQuality "1"]
[TimeControl "7800+30"]

1. d4 {[%emt 0:00:03]} d5 {[%emt 0:00:04]} 2. c4 {[%emt 0:00:03]} e6 {[%emt 0:00:04]} 3. Nc3 {[%emt 0:00:03]} Nf6 {[%emt 0:00:03]} 4. Bg5 {[%emt 0:00:06]} c5 {[%emt 0:00:04]} 5. cxd5 {[%emt 0:00:11]} cxd4 {[%emt 0:00:04]} 6. Qxd4 {[%emt 0:00:20]} Be7 {[%emt 0:00:06]} 7. e4 {[%emt 0:02:21]} exd5 {[%emt 0:00:15]} 8. e5 {[%emt 0:01:30]} Nc6 {[%emt 0:03:18]} 9. Bb5 {[%emt 0:00:05]} Ng4 {[%emt 0:03:36]} 10. Bxe7 {[%emt 0:01:24]} Qxe7 {[%emt 0:00:20]} 11. Nf3 {[%emt 0:03:12]} O-O {[%emt 0:03:59]} 12. Bxc6 {[%emt 0:05:26]} bxc6 {[%emt 0:00:16]} 13. O-O {[%emt 0:00:03]} Re8 {[%emt 0:02:35]} 14. Rfe1 {[%emt 0:00:15]} Rb8 {[%emt 0:01:27]} 15. Qd2 {[%emt 0:01:34]} Qb4 {[%emt 0:04:04]} 16. b3 {[%emt 0:01:38]} Be6 {[%emt 0:00:56]} 17. Rad1 {[%emt 0:00:37]} Rbd8 {[%emt 0:03:18]} 18. Na4 {[%emt 0:01:31]} Qxd2 {[%emt 0:04:00]} 19. Rxd2 {[%emt 0:00:01]} f6 {[%emt 0:00:48]} 20. exf6 {[%emt 0:00:21]} Nxf6 {[%emt 0:01:14]} 21. Rc1 {[%emt 0:00:24]} Ne4 {[%emt 0:04:05]} 22. Rd4 {[%emt 0:04:26]} Rc8 {[%emt 0:03:48]} 23. Nc5 {[%emt 0:01:55]} Nxc5 {[%emt 0:04:32]} 24. Rxc5 {[%emt 0:00:50]} Bd7 {[%emt 0:00:37]} 25. h3 {[%emt 0:02:26]} Re7 {[%emt 0:03:43]} 26. Ra4 {[%emt 0:02:26]} Rc7 {[%emt 0:00:57]} 27. Rb4 {[%emt 0:00:08]} h6 {[%emt 0:01:44]} 28. Rb8+ {[%emt 0:00:31]} Kf7 {[%emt 0:01:07]} 29. Nd4 {[%emt 0:00:20]} Re8 {[%emt 0:03:53]} 30. Rxe8 {[%emt 0:00:34]} Bxe8 {[%emt 0:02:01]} 31. b4 {[%emt 0:01:18]} Ke7 {[%emt 0:03:58]} 32. g4 {[%emt 0:03:05]} g6 {[%emt 0:01:40]} 33. f4 {[%emt 0:01:00]} Kd6 {[%emt 0:00:54]} 34. Kf2 {[%emt 0:03:04]} Re7 {[%emt 0:02:51]} 35. a3 {[%emt 0:01:03]} Re4 {[%emt 0:02:36]} 36. Ne2 {[%emt 0:00:17]} Re7 {[%emt 0:00:19]} 37. Ra5 {[%emt 0:02:07]} Rf7 {[%emt 0:06:46]} 38. Ke3 {[%emt 0:00:52]} Re7+ {[%emt 0:00:30]} 39. Kd2 {[%emt 0:02:56]} Rb7 {[%emt 0:02:17]} 40. Kd3 {[%emt 0:01:01]} Kc7 {[%emt 0:03:15]} 41. Nd4 {[%emt 0:02:14]} Bd7 {[%emt 0:02:53]} 42. Nf3 {[%emt 0:01:23]} Kb6 {[%emt 0:01:42]} 43. Rc5 {[%emt 0:00:58]} Kc7 {[%emt 0:01:55]} 44. Ne5 {[%emt 0:00:34]} h5 {[%emt 0:01:24]} 45. Kd4 {[%emt 0:01:07]} hxg4 {[%emt 0:00:38]} 46. hxg4 {[%emt 0:00:01]} Rb6 {[%emt 0:01:57]} 47. b5 {[%emt 0:05:22]} Rxb5 {[%emt 0:00:26]} 48. Rxb5 {[%emt 0:00:07]} cxb5 {[%emt 0:00:04]} 49. Nxd7 {[%emt 0:00:13]} Kxd7 {[%emt 0:00:10]} 50. Kxd5 {[%emt 0:00:01]} a5 {[%emt 0:02:06]} 51. Kc5 {[%emt 0:00:05]} b4 {[%emt 0:00:06]} 52. axb4 {[%emt 0:00:01]} axb4 {[%emt 0:00:07]} 53. Kxb4 {[%emt 0:00:05]} Kd6 {[%emt 0:00:09]} 54. Kc4 {[%emt 0:00:01]} Kc6 {[%emt 0:00:11]} 55. Kd4 {[%emt 0:00:06]} Kd6 {[%emt 0:00:05]} 56. Ke4 {[%emt 0:00:07]} Ke6 {[%emt 0:00:17]} 57. g5 {[%emt 0:00:26]} Kf7 {[%emt 0:00:54]} 58. Kd5 {[%emt 0:00:30]} 1-0

[Event "12th Senioren-Cup Tegernsee 2024"]
[Site "Rottach-Egern"]
[Date "2024.04.06"]
[Round "1.8"]
[White "Kopischke, Maik"]
[Black "Lindam, Ingo"]
[Result "0-1"]
[ECO "A24"]
[WhiteElo "1883"]
[BlackElo "2160"]
[Annotator "RC"]
[PlyCount "70"]
[EventDate "2024.04.02"]
[EventType "swiss"]
[EventCountry "GER"]
[SourceTitle "playchess.com"]
[Source "ChessBase"]
[SourceQuality "1"]
[TimeControl "7800+30"]

1. Nf3 {[%emt 0:00:02]} Nf6 {[%emt 0:00:23]} 2. c4 {[%emt 0:00:09]} g6 {[%emt 0:00:25]} 3. Nc3 {[%emt 0:00:05]} Bg7 {[%emt 0:00:28]} 4. g3 {[%emt 0:00:04]} O-O {[%emt 0:00:45]} 5. Bg2 {[%emt 0:00:03]} d6 {[%emt 0:00:24]} 6. O-O {[%emt 0:00:05]} e5 {[%emt 0:00:19]} 7. d3 {[%emt 0:00:03]} Re8 {[%emt 0:07:52]} 8. Nd2 {[%emt 0:01:02]} a5 {[%emt 0:04:52]} 9. Rb1 {[%emt 0:00:48]} c6 {[%emt 0:00:27]} 10. a3 {[%emt 0:00:16]} h6 {[%emt 0:11:30]} 11. b4 {[%emt 0:00:30]} axb4 {[%emt 0:00:09]} 12. axb4 {[%emt 0:00:07]} d5 {[%emt 0:00:26]} 13. b5 {[%emt 0:04:13]} Be6 {[%emt 0:06:48]} 14. bxc6 {[%emt 0:01:26]} bxc6 {[%emt 0:00:28]} 15. cxd5 {[%emt 0:02:30]} cxd5 {[%emt 0:00:32]} 16. e4 {[%emt 0:01:58]} Nc6 {[%emt 0:14:37]} 17. Nb3 {[%emt 0:11:55]} d4 {[%emt 0:07:39]} 18. Ne2 {[%emt 0:01:04]} Qe7 {[%emt 0:18:32]} 19. f4 {[%emt 0:03:25]} Bg4 {[%emt 0:01:48]} 20. h3 {[%emt 0:02:07]} Bxe2 {[%emt 0:02:00]} 21. Qxe2 {[%emt 0:00:19]} Nh5 {[%emt 0:01:05]} 22. Kh2 {[%emt 0:00:46]} Nb4 {[%emt 0:04:13]} 23. Rb2 {[%emt 0:28:55]} Rec8 {[%emt 0:02:56]} 24. Bd2 {[%emt 0:02:56]} Na2 {[%emt 0:05:27]} 25. f5 {[%emt 0:00:55]} Nc3 {[%emt 0:00:57]} 26. Bxc3 {[%emt 0:01:14]} Rxc3 {[%emt 0:03:37]} 27. Bf3 {[%emt 0:03:58]} Rb8 {[%emt 0:18:20]} 28. Bxh5 {[%emt 1:13:35]} gxh5 {[%emt 0:00:27]} 29. Na5 {[%emt 0:00:00]} Rxb2 {[%emt 0:03:55]} 30. Qxb2 {[%emt 0:00:00]} Rxd3 {[%emt 0:08:21]} 31. Qf2 {[%emt 0:00:00]} Qb4 {[%emt 0:00:56]} 32. Nc6 {[%emt 0:00:00]} Qd2 {[%emt 0:09:59]} 33. Kg1 {[%emt 0:00:00]} Qg5 {[%emt 0:02:10]} 34. g4 {[%emt 0:00:00]} Rxh3 {[%emt 0:00:59]} 35. Qe2 {[%emt 0:00:00]} Rg3+ {[%emt 0:01:03]} 0-1

[Event "12th Senioren-Cup Tegernsee 2024"]
[Site "Rottach-Egern"]
[Date "2024.04.07"]
[Round "2.1"]
[White "Kaiser, Guenter"]
[Black "Schneider-Zinner, Harald"]
[Result "0-1"]
[ECO "E03"]
[WhiteElo "2001"]
[BlackElo "2335"]
[Annotator "RC"]
[PlyCount "44"]
[EventDate "2024.04.02"]
[EventType "swiss"]
[EventCountry "GER"]
[SourceTitle "playchess.com"]
[Source "ChessBase"]
[SourceQuality "1"]
[TimeControl "7800+30"]

1. c4 {[%emt 0:00:04]} e6 {[%emt 0:00:32]} 2. g3 {[%emt 0:00:26]} d5 {[%emt 0:00:26]} 3. Bg2 {[%emt 0:00:15]} dxc4 {[%emt 0:01:44]} 4. Nf3 {[%emt 0:00:48]} Nd7 {[%emt 0:02:20]} 5. Qc2 {[%emt 0:01:33]} a6 {[%emt 0:01:50]} 6. O-O {[%emt 0:02:50]} Ngf6 {[%emt 0:02:29]} 7. Qxc4 {[%emt 0:03:12]} b5 {[%emt 0:01:42]} 8. Qc2 {[%emt 0:00:46]} Bb7 {[%emt 0:00:15]} 9. d4 {[%emt 0:02:46]} c5 {[%emt 0:01:06]} 10. b3 {[%emt 0:12:43]} Rc8 {[%emt 0:04:53]} 11. Qb2 {[%emt 0:01:07]} Bd6 {[%emt 0:11:49]} 12. dxc5 {[%emt 0:09:39]} Bxc5 {[%emt 0:00:25]} 13. Bd2 {[%emt 0:06:07]} O-O {[%emt 0:07:17]} 14. Bc3 {[%emt 0:03:14]} Qc7 {[%emt 0:02:11]} 15. b4 {[%emt 0:04:16]} Be7 {[%emt 0:02:54]} 16. Bd4 {[%emt 0:05:40]} Nb6 {[%emt 0:06:03]} 17. Nbd2 {[%emt 0:01:36]} Na4 {[%emt 0:03:17]} 18. Qb1 {[%emt 0:08:32]} Nd5 {[%emt 0:14:10]} 19. a3 {[%emt 0:01:56]} Rfd8 {[%emt 0:04:05]} 20. Rc1 {[%emt 0:03:07]} Ndc3 {[%emt 0:02:48]} 21. Qd3 {[%emt 0:02:17]} Bf6 {[%emt 0:12:10]} 22. e3 {[%emt 0:03:51]} e5 {[%emt 0:02:41]} 0-1

[Event "12th Senioren-Cup Tegernsee 2024"]
[Site "Rottach-Egern"]
[Date "2024.04.07"]
[Round "2.2"]
[White "Heinbuch, Detlef Ulrich"]
[Black "Schoengart, Ralf"]
[Result "1-0"]
[ECO "A11"]
[WhiteElo "2273"]
[BlackElo "2000"]
[Annotator "RC"]
[PlyCount "65"]
[EventDate "2024.04.02"]
[EventType "swiss"]
[EventCountry "GER"]
[SourceTitle "playchess.com"]
[Source "ChessBase"]
[SourceQuality "1"]
[TimeControl "7800+30"]

1. c4 {[%emt 0:00:04]} Nf6 {[%emt 0:01:00]} 2. Nc3 {[%emt 0:00:35]} c6 {[%emt 0:00:40]} 3. Nf3 {[%emt 0:02:46]} d5 {[%emt 0:00:49]} 4. e3 {[%emt 0:00:13]} Bg4 {[%emt 0:01:41]} 5. h3 {[%emt 0:02:39]} Bxf3 {[%emt 0:02:02]} 6. Qxf3 {[%emt 0:00:22]} e6 {[%emt 0:00:38]} 7. b3 {[%emt 2:07:21]} Nbd7 {[%emt 0:03:13]} 8. Bb2 {[%emt 0:00:00]} dxc4 {[%emt 0:02:52]} 9. bxc4 {[%emt 0:00:00]} Ne5 {[%emt 0:02:10]} 10. Qe2 {[%emt 0:00:00]} Be7 {[%emt 0:01:10]} 11. d4 {[%emt 0:00:00]} Ng6 {[%emt 0:05:32]} 12. g3 {[%emt 0:00:00]} O-O {[%emt 0:01:58]} 13. Bg2 {[%emt 0:00:00]} Qc7 {[%emt 0:02:20]} 14. O-O {[%emt 0:00:00]} Rad8 {[%emt 0:00:50]} 15. Rad1 {[%emt 0:00:00]} Rfe8 {[%emt 0:02:36]} 16. f4 {[%emt 0:00:00]} Qa5 {[%emt 0:07:10]} 17. Kh2 {[%emt 0:00:00]} h6 {[%emt 0:02:14]} 18. e4 {[%emt 0:00:00]} Bb4 {[%emt 0:05:11]} 19. Qc2 {[%emt 0:00:00]} c5 {[%emt 0:04:11]} 20. d5 {[%emt 0:00:00]} exd5 {[%emt 0:04:41]} 21. cxd5 {[%emt 0:00:00]} Qa6 {[%emt 0:11:53]} 22. e5 {[%emt 0:00:00]} Nd7 {[%emt 0:10:06]} 23. a3 {[%emt 0:00:00]} Ba5 {[%emt 0:02:08]} 24. Ne4 {[%emt 0:00:00]} c4 {[%emt 0:05:14]} 25. Nd6 {[%emt 0:00:00]} Rf8 {[%emt 0:04:03]} 26. Qxc4 {[%emt 0:00:00]} Qxc4 {[%emt 0:03:04]} 27. Nxc4 {[%emt 0:00:00]} Bb6 {[%emt 0:00:20]} 28. f5 {[%emt 0:00:00]} Ne7 {[%emt 0:02:36]} 29. d6 {[%emt 0:00:00]} Nc6 {[%emt 0:03:24]} 30. e6 {[%emt 0:00:00]} fxe6 {[%emt 0:00:32]} 31. fxe6 {[%emt 0:00:00]} Rxf1 {[%emt 0:00:18]} 32. Rxf1 {[%emt 0:00:00]} Nf6 {[%emt 0:00:28]} 33. Bxf6 {[%emt 0:00:00]} 1-0

[Event "12th Senioren-Cup Tegernsee 2024"]
[Site "Rottach-Egern"]
[Date "2024.04.07"]
[Round "2.3"]
[White "Pruesse, Horst"]
[Black "Cordts, Ingo"]
[Result "0-1"]
[ECO "D01"]
[WhiteElo "1992"]
[BlackElo "2225"]
[Annotator "RC"]
[PlyCount "80"]
[EventDate "2024.04.02"]
[EventType "swiss"]
[EventCountry "GER"]
[SourceTitle "playchess.com"]
[Source "ChessBase"]
[SourceQuality "1"]
[TimeControl "7800+30"]

1. d4 {[%emt 0:00:03]} Nf6 {[%emt 0:00:23]} 2. Nc3 {[%emt 0:00:10]} d5 {[%emt 0:00:40]} 3. Bg5 {[%emt 0:00:03]} Nbd7 {[%emt 0:00:39]} 4. Nf3 {[%emt 0:00:22]} c5 {[%emt 0:02:24]} 5. dxc5 {[%emt 0:02:14]} e6 {[%emt 0:03:57]} 6. e4 {[%emt 0:09:17]} Bxc5 {[%emt 0:08:36]} 7. Bb5 {[%emt 0:09:02]} dxe4 {[%emt 0:13:33]} 8. Bxf6 {[%emt 0:01:45]} gxf6 {[%emt 0:04:05]} 9. Bxd7+ {[%emt 0:02:44]} Qxd7 {[%emt 0:04:50]} 10. Nxe4 {[%emt 0:01:46]} Be7 {[%emt 0:01:55]} 11. Qxd7+ {[%emt 0:06:01]} Kxd7 {[%emt 0:00:37]} 12. O-O-O+ {[%emt 0:00:03]} Kc7 {[%emt 0:00:29]} 13. Rd3 {[%emt 0:01:40]} Rd8 {[%emt 0:02:30]} 14. Rc3+ {[%emt 0:03:37]} Kb6 {[%emt 0:03:08]} 15. Rd1 {[%emt 0:07:01]} Rxd1+ {[%emt 0:01:24]} 16. Kxd1 {[%emt 0:00:02]} e5 {[%emt 0:01:51]} 17. Nfd2 {[%emt 0:03:43]} Be6 {[%emt 0:05:09]} 18. Rd3 {[%emt 0:14:48]} Rd8 {[%emt 0:04:30]} 19. Rxd8 {[%emt 0:02:05]} Bxd8 {[%emt 0:00:02]} 20. b3 {[%emt 0:00:02]} f5 {[%emt 0:01:11]} 21. Nd6 {[%emt 0:01:20]} Kc6 {[%emt 0:02:47]} 22. N6c4 {[%emt 0:00:52]} Kd5 {[%emt 0:01:59]} 23. Ne3+ {[%emt 0:08:44]} Kc5 {[%emt 0:01:05]} 24. c3 {[%emt 0:07:24]} b5 {[%emt 0:06:05]} 25. b4+ {[%emt 0:03:30]} Kc6 {[%emt 0:01:33]} 26. a3 {[%emt 0:03:43]} f4 {[%emt 0:05:06]} 27. Nef1 {[%emt 0:04:54]} Kd5 {[%emt 0:02:37]} 28. f3 {[%emt 0:01:31]} Bf5 {[%emt 0:03:15]} 29. g3 {[%emt 0:03:13]} Bf6 {[%emt 0:03:07]} 30. Kc1 {[%emt 0:04:00]} Bd3 {[%emt 0:01:44]} 31. Kb2 {[%emt 0:05:05]} h5 {[%emt 0:03:37]} 32. gxf4 {[%emt 0:08:48]} exf4 {[%emt 0:01:30]} 33. Kb3 {[%emt 0:00:03]} h4 {[%emt 0:04:10]} 34. Kb2 {[%emt 0:05:07]} h3 {[%emt 0:01:49]} 35. Kb3 {[%emt 0:00:01]} Be5 {[%emt 0:00:34]} 36. Kb2 {[%emt 0:00:22]} Bxf1 {[%emt 0:02:47]} 37. Nxf1 {[%emt 0:00:09]} Kc4 {[%emt 0:00:37]} 38. Nd2+ {[%emt 0:01:11]} Kd3 {[%emt 0:00:09]} 39. Ne4 {[%emt 0:00:08]} Ke3 {[%emt 0:02:13]} 40. Ng5 {[%emt 0:00:22]} f6 {[%emt 0:00:44]} 0-1

[Event "12th Senioren-Cup Tegernsee 2024"]
[Site "Rottach-Egern"]
[Date "2024.04.07"]
[Round "2.4"]
[White "Vatter, Hans-Joachim"]
[Black "Diotallevi, Maurizio"]
[Result "1-0"]
[ECO "A01"]
[WhiteElo "2211"]
[BlackElo "1982"]
[Annotator "RC"]
[PlyCount "113"]
[EventDate "2024.04.02"]
[EventType "swiss"]
[EventCountry "GER"]
[SourceTitle "playchess.com"]
[Source "ChessBase"]
[SourceQuality "1"]
[TimeControl "7800+30"]

1. b3 {[%emt 0:01:04]} d5 {[%emt 0:01:11]} 2. Bb2 {[%emt 0:00:03]} c6 {[%emt 0:01:12]} 3. e3 {[%emt 0:04:05]} e6 {[%emt 0:02:07]} 4. f4 {[%emt 0:00:25]} f5 {[%emt 0:07:09]} 5. Nf3 {[%emt 0:00:24]} Nf6 {[%emt 0:00:10]} 6. Be2 {[%emt 0:01:48]} Bd6 {[%emt 0:02:20]} 7. Ne5 {[%emt 0:05:05]} O-O {[%emt 0:01:57]} 8. d3 {[%emt 0:05:55]} Qe7 {[%emt 0:01:06]} 9. Nd2 {[%emt 0:02:48]} Ba3 {[%emt 0:03:37]} 10. Qc1 {[%emt 0:03:10]} Bxb2 {[%emt 0:00:13]} 11. Qxb2 {[%emt 0:00:02]} Nbd7 {[%emt 0:02:47]} 12. Ndf3 {[%emt 0:02:00]} Nxe5 {[%emt 0:01:07]} 13. Nxe5 {[%emt 0:00:11]} Qb4+ {[%emt 0:01:58]} 14. c3 {[%emt 0:00:27]} Qb6 {[%emt 0:00:37]} 15. d4 {[%emt 0:01:55]} Nd7 {[%emt 0:04:44]} 16. Nf3 {[%emt 0:00:42]} Nf6 {[%emt 0:01:26]} 17. O-O {[%emt 0:00:30]} Bd7 {[%emt 0:02:09]} 18. Ne5 {[%emt 0:02:56]} Be8 {[%emt 0:00:56]} 19. Qa3 {[%emt 0:00:20]} Qd8 {[%emt 0:04:54]} 20. c4 {[%emt 0:04:04]} Nd7 {[%emt 0:08:46]} 21. Nd3 {[%emt 0:07:24]} Bf7 {[%emt 0:02:50]} 22. Rac1 {[%emt 0:00:30]} Re8 {[%emt 0:01:06]} 23. Rc2 {[%emt 0:06:38]} Qe7 {[%emt 0:00:52]} 24. Qxe7 {[%emt 0:02:26]} Rxe7 {[%emt 0:00:06]} 25. Ne5 {[%emt 0:01:31]} Kf8 {[%emt 0:13:09]} 26. Bd3 {[%emt 0:01:37]} g6 {[%emt 0:00:55]} 27. h3 {[%emt 0:00:28]} Nxe5 {[%emt 0:04:01]} 28. fxe5 {[%emt 0:00:59]} Ke8 {[%emt 0:01:51]} 29. cxd5 {[%emt 0:01:39]} exd5 {[%emt 0:01:28]} 30. g4 {[%emt 0:01:17]} fxg4 {[%emt 0:00:15]} 31. hxg4 {[%emt 0:00:01]} Be6 {[%emt 0:00:17]} 32. g5 {[%emt 0:00:28]} Rf7 {[%emt 0:00:58]} 33. Rf6 {[%emt 0:00:20]} Ke7 {[%emt 0:01:14]} 34. b4 {[%emt 0:01:32]} a6 {[%emt 0:00:32]} 35. Rh2 {[%emt 0:00:26]} Raf8 {[%emt 0:01:48]} 36. Kf1 {[%emt 0:04:56]} Bg4 {[%emt 0:08:49]} 37. Ke1 {[%emt 0:01:26]} Bh5 {[%emt 0:04:16]} 38. Be2 {[%emt 0:01:18]} Bxe2 {[%emt 0:00:35]} 39. Kxe2 {[%emt 0:00:02]} Ke8 {[%emt 0:05:24]} 40. Kd3 {[%emt 0:05:36]} Rxf6 {[%emt 0:00:52]} 41. gxf6 {[%emt 0:02:38]} h5 {[%emt 0:00:39]} 42. e4 {[%emt 0:00:06]} Kf7 {[%emt 0:00:18]} 43. exd5 {[%emt 0:00:10]} cxd5 {[%emt 0:00:32]} 44. Rc2 {[%emt 0:03:19]} Ke6 {[%emt 0:01:16]} 45. Ke3 {[%emt 0:00:20]} g5 {[%emt 0:00:52]} 46. Rc7 {[%emt 0:01:30]} Rf7 {[%emt 0:01:51]} 47. Rc8 {[%emt 0:00:48]} h4 {[%emt 0:00:30]} 48. Re8+ {[%emt 0:05:08]} Kf5 {[%emt 0:01:01]} 49. Re7 {[%emt 0:00:09]} Kg6 {[%emt 0:00:27]} 50. Re8 {[%emt 0:01:49]} h3 {[%emt 0:02:38]} 51. Kf2 {[%emt 0:05:48]} Rc7 {[%emt 0:02:32]} 52. Rg8+ {[%emt 0:16:10]} Kf5 {[%emt 0:00:57]} 53. Rg7 {[%emt 0:01:26]} Rc2+ {[%emt 0:00:19]} 54. Kg3 {[%emt 0:04:41]} Rc3+ {[%emt 0:00:10]} 55. Kh2 {[%emt 0:00:02]} Kg4 {[%emt 0:00:17]} 56. f7 {[%emt 0:01:46]} Rf3 {[%emt 0:02:52]} 57. e6 {[%emt 0:00:21]} 1-0